bitfinex/quotes_BTCUSD_20240929
["timestamp","ask_amount","ask_price","bid_price","bid_amount"]
[1727630107871,0.08036332,66044.0,66039.0,0.302851]
[1727630108087,0.017,66040.0,66039.0,0.152425]
[1727630108307,0.009,66040.0,66039.0,0.152425]
[1727630108526,0.00069061,66047.0,66045.0,0.151409]
[1727630108753,0.00069061,66047.0,66046.0,0.151409]
[1727630108992,0.00069061,66047.0,66046.0,0.138409]
[1727630109270,0.00069061,66047.0,66046.0,0.130409]
[1727630109477,0.00069061,66047.0,66045.0,0.15141]
[1727630109695,0.15209861,66047.0,66043.0,0.37956056]
[1727630110537,0.00669061,66047.0,66045.0,0.001]
[1727630110767,0.00669061,66047.0,66045.0,0.153411]
[1727630110980,0.00069061,66047.0,66045.0,0.001]
[1727630111189,0.15709861,66047.0,66043.0,0.38056156]
[1727630111395,0.15709861,66047.0,66043.0,0.38156156]
[1727630111612,0.15709761,66047.0,66043.0,0.38056056]
[1727630111879,0.00069061,66047.0,66044.0,0.151413]
[1727630112117,0.00069061,66047.0,66045.0,0.001]
[1727630112335,0.00069061,66047.0,66045.0,0.002]
[1727630112336,0.23746093,66047.0,66045.0,0.002]
[1727630112558,0.08605393,66047.0,66045.0,0.002]
[1727630112772,0.10978545,66047.0,66045.0,0.002]
[1727630113200,0.08605393,66047.0,66045.0,0.002]
[1727630113852,0.08105393,66047.0,66045.0,0.001]
[1727630114072,0.08105393,66047.0,66044.0,0.151413]
[1727630114286,0.23246093,66047.0,66044.0,0.001]
[1727630114516,0.08105393,66047.0,66044.0,0.152413]
[1727630114779,0.23246193,66047.0,66045.0,0.001]
[1727630115264,0.08105393,66047.0,66045.0,0.001]
[1727630115714,0.08105393,66047.0,66044.0,0.152412]
[1727630115995,0.08105393,66047.0,66045.0,0.001]
[1727630116255,0.23246093,66047.0,66045.0,0.001]
[1727630116484,0.08105393,66047.0,66045.0,0.001]
[1727630117182,0.08105393,66047.0,66044.0,0.001]
[1727630117183,0.151411,66045.0,66044.0,0.001]
[1727630117628,0.00663926,66045.0,66044.0,0.001]
[1727630118060,0.15141,66046.0,66042.0,0.174417]
[1727630118325,0.08036332,66044.0,66042.0,0.174417]
[1727630118552,0.04220395,66043.0,66042.0,0.023]
[1727630119274,0.04220395,66043.0,66042.0,0.151418]
[1727630119468,0.04220395,66043.0,66042.0,0.174418]
[1727630120136,0.03720395,66043.0,66042.0,0.174418]
[1727630120590,0.151426,66039.0,66035.0,0.151434]
[1727630120847,0.151426,66039.0,66038.0,0.22814556]
[1727630121093,0.302843,66041.0,66036.0,0.151432]
[1727630121331,0.01182579,66042.0,66037.0,0.15143]
[1727630121332,0.08036332,66038.0,66037.0,0.15143]
[1727630121563,0.00663131,66041.0,66039.0,0.151423]
[1727630121789,0.06795074,66054.0,66039.0,0.151423]
[1727630121790,0.34809449,66052.0,66040.0,0.113]
[1727630122001,0.151406,66048.0,66042.0,0.151418]
[1727630122222,0.151406,66048.0,66040.0,0.023]
[1727630122223,0.302808,66049.0,66034.0,0.075]
[1727630122453,0.08036332,66043.0,66041.0,0.151421]
[1727630122879,0.08036332,66043.0,66040.0,0.151422]
[1727630123098,0.08036332,66043.0,66039.0,0.53099656]
[1727630123311,0.08036332,66043.0,66042.0,0.151418]
[1727630123520,0.08036332,66043.0,66039.0,0.53099656]
[1727630123956,0.08036332,66043.0,66041.0,0.15142]
[1727630124168,0.08036332,66043.0,66041.0,0.151419]
[1727630124382,0.08036332,66043.0,66040.0,0.302844]
[1727630124662,0.08036332,66043.0,66042.0,0.151418]
[1727630124878,0.08036332,66043.0,66039.0,0.53099656]
[1727630124879,0.08036332,66043.0,66040.0,0.151421]
[1727630125328,0.08036332,66043.0,66039.0,0.53099656]
[1727630125542,0.08036332,66043.0,66039.0,0.22814556]
[1727630125990,0.08036332,66043.0,66042.0,0.151418]
[1727630126224,0.08036332,66043.0,66039.0,0.22814556]
[1727630126225,0.174628,66046.0,66039.0,0.22814556]
[1727630126438,0.076828,66046.0,66041.0,0.302841]
[1727630126647,0.000828,66046.0,66041.0,0.302841]
[1727630126864,0.000828,66046.0,66045.0,0.151411]
[1727630128219,0.000828,66046.0,66045.0,0.174411]
[1727630128689,0.000828,66046.0,66045.0,0.32969894]
[1727630129873,0.000828,66046.0,66045.0,0.33569894]
[1727630130832,0.000828,66046.0,66045.0,0.34069894]
[1727630131070,0.000828,66046.0,66045.0,0.43069894]
[1727630133362,0.000828,66046.0,66045.0,0.33569894]
[1727630133589,0.000828,66046.0,66045.0,0.34069894]
[1727630134032,0.000828,66046.0,66045.0,0.32969894]
[1727630134262,0.000828,66046.0,66045.0,0.33769894]
[1727630134477,0.000828,66046.0,66045.0,0.43949894]
[1727630135153,0.000828,66046.0,66045.0,0.43149894]
[1727630135374,0.000828,66046.0,66045.0,0.44049894]
[1727630135599,0.000828,66046.0,66045.0,0.56115247]
[1727630136047,0.000828,66046.0,66045.0,0.57115247]
[1727630136277,0.000828,66046.0,66045.0,0.56415247]
[1727630136668,0.000828,66046.0,66045.0,0.57215247]
[1727630137246,0.000828,66046.0,66045.0,0.56415247]
[1727630137479,0.000828,66046.0,66045.0,0.57315247]
[1727630137902,0.000828,66046.0,66045.0,0.45249894]
[1727630138341,0.000828,66046.0,66045.0,0.35769894]
[1727630138554,0.000828,66046.0,66045.0,0.33869894]
[1727630138994,0.000828,66046.0,66045.0,0.34069894]
[1727630139405,0.000828,66046.0,66045.0,0.35069894]
[1727630139854,0.000828,66046.0,66045.0,0.34069894]
[1727630140278,0.000828,66046.0,66045.0,0.33869894]
[1727630140504,0.000828,66046.0,66045.0,0.34869894]
[1727630141859,0.000828,66046.0,66045.0,0.33869894]
[1727630142074,0.000828,66046.0,66045.0,0.160411]
[1727630142294,0.000828,66046.0,66045.0,0.169411]
[1727630142513,0.000828,66046.0,66045.0,0.018]
[1727630142748,0.34272411,66046.0,66045.0,0.009]
[1727630142968,0.2298821,66046.0,66045.0,0.017]
[1727630143409,0.215047,66046.0,66044.0,0.151413]
[1727630143649,0.19131511,66046.0,66045.0,0.004]
[1727630143916,0.19131511,66046.0,66045.0,0.153411]
[1727630144356,0.19131511,66046.0,66045.0,0.154411]
[1727630146401,0.19131511,66046.0,66045.0,0.156411]
[1727630148240,0.26407081,66046.0,66045.0,0.156411]
[1727630149179,0.19131511,66046.0,66045.0,0.154411]
[1727630149655,0.19131511,66046.0,66045.0,0.151411]
[1727630149899,0.19131511,66046.0,66045.0,0.152411]
[1727630150585,0.01311511,66046.0,66045.0,0.152411]
[1727630150824,0.000828,66046.0,66045.0,0.152411]
[1727630152949,0.01302538,66046.0,66045.0,0.152411]
[1727630153186,0.20765879,66046.0,66045.0,0.152411]
[1727630153432,0.20765879,66046.0,66045.0,0.151411]
[1727630153433,0.2681887,66046.0,66045.0,0.151411]
[1727630161587,0.2681887,66046.0,66044.0,0.151413]
[1727630162787,0.2681887,66046.0,66045.0,0.151411]
[1727630163036,0.35214642,66046.0,66045.0,0.151411]
[1727630163496,0.35214642,66046.0,66044.0,0.151413]
[1727630163754,0.35214642,66046.0,66045.0,0.151411]
[1727630164475,0.2681887,66046.0,66045.0,0.151411]
[1727630174071,0.1727887,66046.0,66045.0,0.151411]
[1727630177211,0.01302538,66046.0,66045.0,0.151411]
[1727630181950,0.000828,66046.0,66045.0,0.151411]
[1727630182420,0.000828,66046.0,66045.0,0.152411]
[1727630183111,0.01304301,66046.0,66045.0,0.152411]
[1727630184718,0.000828,66046.0,66045.0,0.152411]
[1727630184941,0.01301996,66046.0,66045.0,0.152411]
[1727630187907,0.01301996,66046.0,66045.0,0.51947032]
[1727630188107,0.01301996,66046.0,66045.0,0.69407032]
[1727630188316,0.000828,66046.0,66045.0,0.69407032]
[1727630188448,0.000828,66046.0,66045.0,0.50529894]
[1727630190524,0.000828,66046.0,66045.0,0.42689894]
[1727630191219,0.000828,66046.0,66045.0,0.43289894]
[1727630191444,0.000828,66046.0,66045.0,0.43189894]
[1727630191673,0.000828,66046.0,66045.0,0.43889894]
[1727630191897,0.000828,66046.0,66045.0,0.187411]
[1727630194212,0.000828,66046.0,66045.0,0.365211]
[1727630200926,0.000828,66046.0,66045.0,0.282811]
[1727630202584,0.000828,66046.0,66045.0,0.43809894]
[1727630203555,0.000828,66046.0,66045.0,0.51846226]
[1727630204071,0.000828,66046.0,66045.0,0.63863089]
[1727630206003,0.000828,66046.0,66045.0,0.62563089]
[1727630206740,0.000828,66046.0,66045.0,0.50546226]
[1727630207203,0.000828,66046.0,66045.0,0.51346226]
[1727630207438,0.000828,66046.0,66045.0,0.52246226]
[1727630207666,0.000828,66046.0,66045.0,0.51346226]
[1727630207895,0.000828,66046.0,66045.0,0.50518238]
[1727630208020,0.000828,66046.0,66045.0,0.53318238]
[1727630208246,0.000828,66046.0,66045.0,0.65639558]
[1727630208682,0.000828,66046.0,66045.0,0.45281906]
[1727630210271,0.000828,66046.0,66045.0,0.53318238]
[1727630213408,0.000828,66046.0,66045.0,0.45281906]
[1727630215451,0.000828,66046.0,66045.0,0.35741906]
[1727630217798,0.000828,66046.0,66045.0,0.35713918]
[1727630218864,0.000828,66046.0,66045.0,0.35879518]
[1727630219599,0.000828,66046.0,66045.0,0.37543167]
[1727630223780,0.000828,66046.0,66045.0,0.35879518]
[1727630225030,0.000828,66046.0,66045.0,0.4391585]
[1727630230633,0.000828,66046.0,66045.0,0.45563938]
[1727630238871,0.000828,66046.0,66045.0,0.4391585]
[1727630239316,0.000828,66046.0,66045.0,0.35879518]
[1727630241098,0.000828,66046.0,66045.0,0.34479518]
[1727630241338,0.000828,66046.0,66045.0,0.16150724]
[1727630241566,0.176028,66046.0,66045.0,0.16150724]
[1727630241799,0.18831645,66046.0,66045.0,0.15250724]
[1727630242024,0.18831645,66046.0,66045.0,0.16350724]
[1727630242290,0.29490703,66046.0,66045.0,0.009656]
[1727630242511,0.29490703,66046.0,66045.0,0.012656]
[1727630242512,0.31763699,66046.0,66045.0,0.012656]
[1727630242735,0.22671717,66046.0,66045.0,0.012656]
[1727630242977,0.22671717,66046.0,66045.0,0.009656]
[1727630243427,0.256461,66046.0,66045.0,0.153067]
[1727630243666,0.18831645,66046.0,66045.0,0.153067]
[1727630243893,0.256461,66046.0,66045.0,0.153067]
[1727630244351,0.23373168,66046.0,66045.0,0.001656]
[1727630244573,0.2925794,66046.0,66045.0,0.002656]
[1727630244804,0.2925794,66046.0,66045.0,0.003656]
[1727630245742,0.18831645,66046.0,66045.0,0.155067]
[1727630246213,0.18831645,66046.0,66045.0,0.154067]
[1727630246672,0.18831645,66046.0,66045.0,0.153067]
[1727630246902,0.18831645,66046.0,66045.0,0.154067]
[1727630247480,0.18831645,66046.0,66045.0,0.153067]
[1727630247599,0.18831645,66046.0,66045.0,0.154067]
[1727630251784,0.18831645,66046.0,66045.0,0.153067]
[1727630259615,0.01311645,66046.0,66045.0,0.153067]
[1727630260068,0.000828,66046.0,66045.0,0.153067]
[1727630260296,0.000828,66046.0,66045.0,0.176067]
[1727630263222,0.000828,66046.0,66045.0,0.33135494]
[1727630263474,0.000828,66046.0,66045.0,0.41171826]
[1727630265646,0.000828,66046.0,66045.0,0.33135494]
[1727630265909,0.000828,66046.0,66045.0,0.176067]
[1727630266613,0.000828,66046.0,66045.0,0.184067]
[1727630267753,0.000828,66046.0,66045.0,0.194067]
[1727630279079,0.173328,66046.0,66045.0,0.194067]
[1727630279307,0.21097506,66046.0,66045.0,0.194067]
[1727630279531,0.21097506,66046.0,66045.0,0.171067]
[1727630281331,0.19886489,66046.0,66045.0,0.171067]
[1727630281560,0.173328,66046.0,66045.0,0.171067]
[1727630281786,0.082928,66046.0,66045.0,0.171067]
[1727630282249,0.000828,66046.0,66045.0,0.194067]
[1727630282932,0.000828,66046.0,66045.0,0.34935494]
[1727630285085,0.000828,66046.0,66045.0,0.33935494]
[1727630285294,0.000828,66046.0,66045.0,0.35135494]
[1727630286034,0.000828,66046.0,66045.0,0.34335494]
[1727630286264,0.000828,66046.0,66045.0,0.35335494]
[1727630291293,0.000828,66046.0,66045.0,0.44365494]
[1727630294675,0.000828,66046.0,66045.0,0.35335494]
[1727630298685,0.000828,66046.0,66045.0,0.198067]
[1727630302127,0.000828,66046.0,66045.0,0.67254182]
[1727630302362,0.000828,66046.0,66045.0,0.66951387]
[1727630302606,0.000828,66046.0,66045.0,0.55065494]
[1727630303073,0.000828,66046.0,66045.0,0.54065494]
[1727630303539,0.000828,66046.0,66045.0,0.55365494]
[1727630303850,0.000828,66046.0,66045.0,0.62201826]
[1727630304032,0.000828,66046.0,66045.0,0.63601826]
[1727630304261,0.000828,66046.0,66045.0,0.62201826]
[1727630304515,0.000828,66046.0,66045.0,0.85910632]
[1727630304741,0.000828,66046.0,66045.0,0.86010632]
[1727630304971,0.000828,66046.0,66045.0,0.87310632]
[1727630305432,0.000828,66046.0,66045.0,0.70371826]
[1727630305889,0.000828,66046.0,66045.0,0.71771826]
[1727630306360,0.000828,66046.0,66045.0,0.73483894]
[1727630306583,0.000828,66046.0,66045.0,0.70371826]
[1727630306826,0.000828,66046.0,66045.0,0.71771826]
[1727630307054,0.000828,66046.0,66045.0,0.70371826]
[1727630307287,0.000828,66046.0,66045.0,0.71771826]
[1727630315158,0.000828,66046.0,66045.0,0.45935494]
[1727630315385,0.000828,66046.0,66045.0,0.53971826]
[1727630315603,0.000828,66046.0,66045.0,0.45935494]
[1727630316081,0.000828,66046.0,66045.0,0.53971826]
[1727630316306,0.000828,66046.0,66045.0,0.45935494]
[1727630319224,0.000828,66046.0,66045.0,0.35935494]
[1727630319458,0.000828,66046.0,66045.0,0.204067]
[1727630320138,0.00064577,66046.0,66045.0,0.204067]
[1727630326080,0.00064577,66046.0,66045.0,0.51114843]
[1727630327027,0.00064577,66046.0,66045.0,0.35935494]
[1727630327728,0.00064577,66046.0,66045.0,0.45935494]
[1727630329863,0.00064577,66046.0,66045.0,0.475918]
[1727630330086,0.00064577,66046.0,66045.0,0.45935494]
[1727630330327,0.00064577,66046.0,66045.0,0.53971826]
[1727630354678,0.17154577,66046.0,66045.0,0.204067]
[1727630360394,0.17154577,66046.0,66045.0,0.181067]
[1727630361066,0.18468841,66046.0,66045.0,0.167067]
[1727630361296,0.18468841,66046.0,66045.0,0.153067]
[1727630361523,0.18468841,66046.0,66045.0,0.179067]
[1727630361771,0.18468841,66046.0,66045.0,0.165067]
[1727630362025,0.18468841,66046.0,66045.0,0.161067]
[1727630362265,0.18468841,66046.0,66045.0,0.167067]
[1727630363459,0.20332501,66046.0,66045.0,0.159067]
[1727630363748,0.20332501,66046.0,66045.0,0.160067]
[1727630363979,0.20332501,66046.0,66045.0,0.166067]
[1727630364245,0.20332501,66046.0,66045.0,0.159067]
[1727630364487,0.20332501,66046.0,66045.0,0.153067]
[1727630364722,0.20332501,66046.0,66045.0,0.156067]
[1727630364921,0.20332501,66046.0,66045.0,0.155067]
[1727630365378,0.20332501,66046.0,66045.0,0.153067]
[1727630366358,0.20332501,66046.0,66045.0,0.001656]
[1727630367507,0.35473401,66046.0,66045.0,0.001656]
[1727630367728,0.20332501,66046.0,66045.0,0.001656]
[1727630368903,0.18468841,66046.0,66045.0,0.153067]
[1727630369128,0.18468841,66046.0,66045.0,0.001656]
[1727630370051,0.18468841,66046.0,66045.0,0.153067]
[1727630370273,0.18468841,66046.0,66045.0,0.001656]
[1727630370549,0.18468841,66046.0,66045.0,0.153067]
[1727630371918,0.18468841,66046.0,66045.0,0.001656]
[1727630372154,0.33609741,66046.0,66045.0,0.001656]
[1727630372610,0.18468841,66046.0,66045.0,0.001656]
[1727630372833,0.33609741,66046.0,66045.0,0.001656]
[1727630373048,0.18468841,66046.0,66045.0,0.001656]
[1727630374258,0.33609741,66046.0,66045.0,0.001656]
[1727630374707,0.18468841,66046.0,66045.0,0.001656]
[1727630379422,0.33609741,66046.0,66045.0,0.001656]
[1727630380322,0.18468841,66046.0,66045.0,0.001656]
[1727630381029,0.33609741,66046.0,66045.0,0.001656]
[1727630383333,0.18468841,66046.0,66045.0,0.001656]
[1727630383554,0.33609741,66046.0,66045.0,0.001656]
[1727630385552,0.18468841,66046.0,66045.0,0.001656]
[1727630385768,0.33609741,66046.0,66045.0,0.001656]
[1727630386692,0.18468841,66046.0,66045.0,0.001656]
[1727630386897,0.33709741,66046.0,66045.0,0.001656]
[1727630390570,0.36083067,66046.0,66045.0,0.001656]
[1727630391462,0.4735654,66046.0,66045.0,0.001656]
[1727630391685,0.40550875,66046.0,66045.0,0.001656]
[1727630392128,0.40750875,66046.0,66045.0,0.001656]
[1727630392571,0.38377549,66046.0,66045.0,0.001656]
[1727630392798,0.38377549,66046.0,66045.0,0.002656]
[1727630393030,0.38277549,66046.0,66045.0,0.002656]
[1727630393301,0.60151877,66046.0,66045.0,0.003656]
[1727630393518,0.61676141,66046.0,66045.0,0.001656]
[1727630393769,0.61676141,66046.0,66045.0,0.002656]
[1727630393990,0.75691088,66046.0,66045.0,0.003656]
[1727630395346,0.62076141,66046.0,66045.0,0.003656]
[1727630395567,0.78064721,66046.0,66045.0,0.003656]
[1727630396259,0.64449774,66046.0,66045.0,0.003656]
[1727630396718,0.75691088,66046.0,66045.0,0.003656]
[1727630398584,0.62076141,66046.0,66045.0,0.003656]
[1727630399738,0.64449778,66046.0,66045.0,0.003656]
[1727630400206,0.78060358,66046.0,66045.0,0.003656]
[1727630400680,0.64449778,66046.0,66045.0,0.003656]
[1727630404244,0.7248611,66046.0,66045.0,0.003656]
[1727630404461,0.860938,66046.0,66045.0,0.003656]
[1727630404703,0.86093905,66046.0,66045.0,0.003656]
[1727630404920,0.7248611,66046.0,66045.0,0.003656]
[1727630405430,0.70112473,66046.0,66045.0,0.003656]
[1727630405651,0.83719721,66046.0,66045.0,0.003656]
[1727630406325,0.83720677,66046.0,66045.0,0.003656]
[1727630406784,0.70112473,66046.0,66045.0,0.003656]
[1727630407448,0.83719161,66046.0,66045.0,0.003656]
[1727630407884,0.83719124,66046.0,66045.0,0.003656]
[1727630413493,0.70112473,66046.0,66045.0,0.003656]
[1727630414132,0.72486248,66046.0,66045.0,0.003656]
[1727630414345,0.73554007,66046.0,66045.0,0.003656]
[1727630415005,0.60387656,66046.0,66045.0,0.003656]
[1727630415233,0.59387656,66046.0,66045.0,0.003656]
[1727630415454,0.60387656,66046.0,66045.0,0.003656]
[1727630415865,0.59387656,66046.0,66045.0,0.003656]
[1727630416252,0.60387656,66046.0,66045.0,0.003656]
[1727630416477,0.74079854,66046.0,66045.0,0.003656]
[1727630417656,0.73879854,66046.0,66045.0,0.003656]
[1727630418278,0.74079854,66046.0,66045.0,0.003656]
[1727630423351,0.74079854,66046.0,66038.0,0.001656]
[1727630423352,0.156425,66039.0,66038.0,0.001656]
[1727630423600,0.48469768,66039.0,66038.0,0.001656]
[1727630423835,0.49753957,66039.0,66038.0,0.001656]
[1727630424086,0.49953957,66039.0,66038.0,0.001656]
[1727630424613,0.50953957,66039.0,66038.0,0.002656]
[1727630425148,0.49953957,66039.0,66038.0,0.001656]
[1727630425689,0.50953957,66039.0,66038.0,0.002656]
[1727630425942,0.51253957,66039.0,66038.0,0.002656]
[1727630426473,0.52453957,66039.0,66038.0,0.003656]
[1727630426973,0.54827856,66039.0,66038.0,0.003656]
[1727630430453,0.52453957,66039.0,66038.0,0.003656]
[1727630432425,0.66074627,66039.0,66038.0,0.003656]
[1727630434151,0.81764303,66039.0,66038.0,0.003656]
[1727630434622,0.42340732,66031.0,66030.0,0.1991126]
[1727630434848,0.72342555,66031.0,66030.0,0.1991126]
[1727630435068,0.72342555,66031.0,66030.0,0.14996]
[1727630435069,0.9093348,66031.0,66030.0,0.14996]
[1727630435298,0.9093348,66031.0,66030.0,0.11247]
[1727630436393,0.93307915,66031.0,66030.0,0.11247]
[1727630436614,0.9093348,66031.0,66030.0,0.11247]
[1727630436801,0.91108201,66031.0,66030.0,0.10747]
[1727630437767,0.93100461,66031.0,66030.0,0.10747]
[1727630437995,0.94499929,66031.0,66030.0,0.10747]
[1727630438240,0.77767828,66031.0,66030.0,0.10747]
[1727630438461,0.79167828,66031.0,66030.0,0.10747]
[1727630439127,0.79067828,66031.0,66030.0,0.10747]
[1727630439351,0.96006634,66031.0,66030.0,0.10747]
[1727630440045,0.98380716,66031.0,66030.0,0.10747]
[1727630441604,1.13716227,66031.0,66030.0,0.10747]
[1727630441823,1.13716227,66031.0,66030.0,0.109126]
[1727630444339,1.12416227,66031.0,66030.0,0.109126]
[1727630444561,0.97190073,66031.0,66030.0,0.109126]
[1727630445068,0.98590073,66031.0,66030.0,0.109126]
[1727630445309,0.94815991,66031.0,66030.0,0.109126]
[1727630445548,1.10134601,66031.0,66030.0,0.109126]
[1727630446040,0.94815991,66031.0,66030.0,0.109126]
[1727630446289,0.96332996,66031.0,66030.0,0.109126]
[1727630446523,0.40902532,66023.0,66022.0,0.001656]
[1727630446768,0.4537034,66023.0,66022.0,0.001656]
[1727630446984,0.5898568,66023.0,66022.0,0.001656]
[1727630447204,0.46626558,66023.0,66022.0,0.001656]
[1727630447467,0.57626558,66023.0,66022.0,0.001656]
[1727630447691,0.88280704,66023.0,66022.0,0.001656]
[1727630447924,1.07814331,66023.0,66022.0,0.001656]
[1727630448135,0.94198991,66023.0,66022.0,0.001656]
[1727630448589,0.86876695,66023.0,66022.0,0.001656]
[1727630448823,0.89676695,66023.0,66022.0,0.001656]
[1727630451072,0.89672743,66023.0,66022.0,0.001656]
[1727630451490,0.76065364,66023.0,66022.0,0.001656]
[1727630453581,0.89672743,66023.0,66022.0,0.001656]
[1727630454494,0.88272743,66023.0,66022.0,0.001656]
[1727630454915,0.89672743,66023.0,66022.0,0.001656]
[1727630455148,0.88272743,66023.0,66022.0,0.001656]
[1727630455382,0.89672743,66023.0,66022.0,0.001656]
[1727630455605,0.59045364,66023.0,66022.0,0.001656]
[1727630456051,0.54577556,66023.0,66022.0,0.001656]
[1727630456271,0.56951954,66023.0,66022.0,0.001656]
[1727630456502,0.78780152,66023.0,66022.0,0.001656]
[1727630459501,0.98281417,66023.0,66022.0,0.001656]
[1727630459750,0.95907019,66023.0,66022.0,0.001656]
[1727630459965,0.95907019,66023.0,66008.0,0.22814556]
[1727630459966,0.256492,66010.0,66008.0,0.22814556]
[1727630460190,0.38218992,66010.0,66008.0,0.22814556]
[1727630460419,0.005,66008.0,65999.0,0.0977]
[1727630460605,0.08036332,66000.0,65999.0,0.0977]
[1727630461082,0.09292892,66000.0,65999.0,0.0977]
[1727630461299,0.14767461,66000.0,65999.0,0.249217]
[1727630461505,0.09292892,66000.0,65999.0,0.249217]
[1727630461960,0.0125656,66000.0,65999.0,0.249217]
[1727630462427,0.08036332,66000.0,65999.0,0.0977]
[1727630462693,0.10141624,66000.0,65999.0,0.0977]
[1727630463149,0.25293124,66000.0,65999.0,0.0977]
[1727630464318,0.25293124,66000.0,65995.0,0.250881]
[1727630464319,0.151518,65999.0,65995.0,0.250881]
[1727630464547,0.08036332,65997.0,65995.0,0.099356]
[1727630464823,0.08036332,65997.0,65995.0,0.250881]
[1727630465068,0.01064162,65999.0,65995.0,0.402408]
[1727630465301,0.01064162,65999.0,65998.0,0.151519]
[1727630465753,0.01164162,65999.0,65998.0,0.151519]
[1727630465986,0.01064162,65999.0,65998.0,0.151519]
[1727630467247,0.01064162,65999.0,65998.0,0.146519]
[1727630467495,0.18036332,66003.0,65998.0,0.151518]
[1727630467768,0.08036332,66000.0,65996.0,0.454569]
[1727630467990,0.001,65999.0,65995.0,0.402408]
[1727630468226,0.001,65999.0,65998.0,0.151518]
[1727630468709,0.001,65999.0,65995.0,0.402408]
[1727630468710,0.08036332,66000.0,65995.0,0.402408]
[1727630468939,0.08036332,66000.0,65999.0,0.151517]
[1727630470591,0.08036332,66003.0,65999.0,0.303034]
[1727630471049,0.08036332,66003.0,66000.0,0.151513]
[1727630471282,0.26047843,66003.0,66000.0,0.151513]
[1727630471739,0.10897043,66003.0,65997.0,0.303041]
[1727630471962,0.08036332,66000.0,65999.0,0.151517]
[1727630473097,0.002,66003.0,66002.0,0.15151]
[1727630473556,0.002,66003.0,66002.0,0.24671]
[1727630473789,0.151492,66010.0,66004.0,0.151505]
[1727630473790,0.08036332,66005.0,66004.0,0.151505]
[1727630474503,0.09268919,66005.0,66004.0,0.151505]
[1727630474724,0.09268919,66005.0,66004.0,0.150505]
[1727630474964,0.09268919,66005.0,65996.0,0.303044]
[1727630475203,0.151511,66002.0,65998.0,0.151519]
[1727630475426,0.151511,66002.0,65999.0,0.151516]
[1727630475427,0.04326779,66002.0,65999.0,0.151516]
[1727630475651,0.01235339,66001.0,65996.0,0.151523]
[1727630475876,0.01235339,66001.0,65993.0,0.303058]
[1727630475877,0.151516,66000.0,65993.0,0.303058]
[1727630476095,0.08036332,65997.0,65995.0,0.153181]
[1727630476342,0.01235272,65996.0,65995.0,0.153181]
[1727630477669,0.13482369,65996.0,65995.0,0.153181]
[1727630478085,0.13782369,65996.0,65995.0,0.153181]
[1727630478290,0.14952215,65996.0,65995.0,0.153181]
[1727630478497,0.16487854,65996.0,65995.0,0.153181]
[1727630478910,0.16187854,65996.0,65995.0,0.153181]
[1727630479319,0.16287854,65996.0,65995.0,0.153181]
[1727630480554,0.13882736,65996.0,65995.0,0.153181]
[1727630480759,0.01635639,65996.0,65995.0,0.153181]
[1727630481601,0.01235639,65996.0,65995.0,0.153181]
[1727630481843,0.01335639,65996.0,65995.0,0.153181]
[1727630482046,0.001,65996.0,65995.0,0.153181]
[1727630482263,0.01333608,65996.0,65995.0,0.153181]
[1727630482472,0.03042365,65996.0,65995.0,0.153181]
[1727630482683,0.04275973,65996.0,65995.0,0.153181]
[1727630483311,0.01333608,65996.0,65995.0,0.153181]
[1727630484191,0.001,65996.0,65995.0,0.153181]
[1727630485270,0.01334437,65996.0,65995.0,0.153181]
[1727630485502,0.001,65996.0,65995.0,0.153181]
[1727630485723,0.01333475,65996.0,65995.0,0.153181]
[1727630485940,0.06856415,65996.0,65995.0,0.153181]
[1727630486379,0.09231311,65996.0,65995.0,0.153181]
[1727630487297,0.06856415,65996.0,65995.0,0.153181]
[1727630487806,0.06856415,65996.0,65995.0,0.001656]
[1727630488057,0.06856415,65996.0,65995.0,0.153182]
[1727630488287,0.01333475,65996.0,65995.0,0.153182]
[1727630489057,0.01333475,65996.0,65995.0,0.001656]
[1727630489800,0.01333475,65996.0,65995.0,0.153182]
[1727630490260,0.01333475,65996.0,65995.0,0.001656]
[1727630490731,0.01233475,65996.0,65995.0,0.001656]
[1727630490971,0.07656392,65996.0,65995.0,0.001656]
[1727630491452,0.07956392,65996.0,65995.0,0.001656]
[1727630491977,0.07656392,65996.0,65995.0,0.001656]
[1727630493168,0.19903489,65996.0,65995.0,0.001656]
[1727630493872,0.20103489,65996.0,65995.0,0.001656]
[1727630494084,0.20403489,65996.0,65995.0,0.001656]
[1727630494307,0.35555889,65996.0,65995.0,0.001656]
[1727630494996,0.37930866,65996.0,65995.0,0.001656]
[1727630495447,0.42474266,65996.0,65995.0,0.001656]
[1727630496402,0.42174266,65996.0,65995.0,0.001656]
[1727630496623,0.41974266,65996.0,65995.0,0.001656]
[1727630496857,0.42674266,65996.0,65995.0,0.001656]
[1727630497095,0.4267723,65996.0,65995.0,0.001656]
[1727630497827,0.38468356,65996.0,65995.0,0.001656]
[1727630498063,0.15277733,65996.0,65995.0,0.001656]
[1727630498300,0.38468356,65996.0,65995.0,0.001656]
[1727630498783,0.33921992,65996.0,65995.0,0.001656]
[1727630499870,0.18769592,65996.0,65995.0,0.001656]
[1727630500762,0.12346675,65996.0,65995.0,0.153182]
[1727630501942,0.09971698,65996.0,65995.0,0.001656]
[1727630502426,0.16392733,65996.0,65995.0,0.001656]
[1727630502655,0.16092733,65996.0,65995.0,0.153182]
[1727630503367,0.01233475,65996.0,65995.0,0.325782]
[1727630503788,0.24048031,65996.0,65995.0,0.153182]
[1727630503791,0.01233475,65996.0,65995.0,0.153182]
[1727630504006,0.05781453,65996.0,65995.0,0.153182]
[1727630505439,0.01233475,65996.0,65995.0,0.153182]
[1727630506251,0.04889059,65996.0,65995.0,0.153182]
[1727630506456,0.14085001,65996.0,65995.0,0.153182]
[1727630506669,0.07263966,65996.0,65995.0,0.153182]
[1727630506879,0.16358679,65996.0,65995.0,0.001656]
[1727630507094,0.31511079,65996.0,65995.0,0.001656]
[1727630507350,0.16358679,65996.0,65995.0,0.001656]
[1727630508530,0.22416366,65996.0,65995.0,0.001656]
[1727630509054,0.22616366,65996.0,65995.0,0.001656]
[1727630509284,0.33984757,65996.0,65995.0,0.001656]
[1727630509536,0.18832357,65996.0,65995.0,0.001656]
[1727630509745,0.18832357,65996.0,65995.0,0.153182]